[Event "January 2 Late 2024"]
[Site "https://www.chess.com"]
[Date "2024.01.02"]
[Round "6"]
[White "Ivanov, Aleksandr"]
[Black "Chiu, Isaac"]
[Result "0-1"]
[Board "159"]
[TimeControl "180+1"]
[WhiteFideId "2092980"]
[BlackFideId "30900654"]
[WhiteElo "2163"]
[BlackElo "2701"]
[WhiteTeam "USA"]
[BlackTeam "USA"]
[WhiteClock "0:00:00"]
[BlackClock "0:00:44"]

1. d4 {[%clk 0:03:00]}  e6 {[%clk 0:03:00]} 2. c4 {[%clk 0:03:00]}  Bb4+ {[%clk 0:02:59]} 3. Bd2 {[%clk 0:02:54]}  Bxd2+ {[%clk 0:02:59]} 4. Qxd2 {[%clk 0:02:52]}  Nf6 {[%clk 0:03:00]} 5. Nc3 {[%clk 0:02:49]}  d5 {[%clk 0:02:59]} 6. e3 {[%clk 0:02:46]}  O-O {[%clk 0:02:59]} 7. cxd5 {[%clk 0:02:40]}  exd5 {[%clk 0:02:59]} 8. Bd3 {[%clk 0:02:39]}  c6 {[%clk 0:02:59]} 9. Nge2 {[%clk 0:02:36]}  Re8 {[%clk 0:02:59]} 10. O-O {[%clk 0:02:35]}  Nbd7 {[%clk 0:02:58]} 11. Qc2 {[%clk 0:02:33]}  Nf8 {[%clk 0:02:57]} 12. b4 {[%clk 0:02:30]}  Ne6 {[%clk 0:02:42]} 13. b5 {[%clk 0:02:28]}  c5 {[%clk 0:02:43]} 14. dxc5 {[%clk 0:02:26]}  Nxc5 {[%clk 0:02:43]} 15. a4 {[%clk 0:02:22]}  Be6 {[%clk 0:02:37]} 16. Nd4 {[%clk 0:02:22]}  Rc8 {[%clk 0:02:38]} 17. Rfc1 {[%clk 0:01:58]}  Qd6 {[%clk 0:02:35]} 18. Be2 {[%clk 0:01:50]}  Bg4 {[%clk 0:02:26]} 19. h3 {[%clk 0:01:43]}  Bd7 {[%clk 0:02:11]} 20. Qb2 {[%clk 0:01:33]}  g6 {[%clk 0:02:08]} 21. Bf1 {[%clk 0:01:27]}  h5 {[%clk 0:02:06]} 22. Nce2 {[%clk 0:01:09]}  Nd3 {[%clk 0:02:01]} 23. Qd2 {[%clk 0:00:38]}  Nxc1 {[%clk 0:01:59]} 24. Rxc1 {[%clk 0:00:38]}  Rxc1 {[%clk 0:01:59]} 25. Qxc1 {[%clk 0:00:37]}  Rc8 {[%clk 0:01:59]} 26. Qb2 {[%clk 0:00:37]}  Ne4 {[%clk 0:01:57]} 27. Nf4 {[%clk 0:00:35]}  Qe5 {[%clk 0:01:52]} 28. Nd3 {[%clk 0:00:29]}  Qc7 {[%clk 0:01:50]} 29. Nf4 {[%clk 0:00:25]}  Qc1 {[%clk 0:01:44]} 30. Qb4 {[%clk 0:00:24]}  Nd2 {[%clk 0:01:41]} 31. Qe7 {[%clk 0:00:21]}  Qxf1+ {[%clk 0:01:29]} 32. Kh2 {[%clk 0:00:20]}  Qxf2 {[%clk 0:01:20]} 33. Qxd7 {[%clk 0:00:12]}  Rc1 {[%clk 0:01:18]} 34. Qe8+ {[%clk 0:00:08]}  Kg7 {[%clk 0:01:17]} 35. Nde6+ {[%clk 0:00:07]}  fxe6 {[%clk 0:00:46]} 36. Qxg6+ {[%clk 0:00:05]}  Kf8 {[%clk 0:00:43]} 37. Qf6+ {[%clk 0:00:04]}  Ke8 {[%clk 0:00:43]} 38. Qxe6+ {[%clk 0:00:03]}  Kd8 {[%clk 0:00:44]} 39. Qd6+ {[%clk 0:00:00]}  Kc8 {[%clk 0:00:44]} 0-1

[Event "January 2 Late 2024"]
[Site "https://www.chess.com"]
[Date "2024.01.02"]
[Round "6"]
[White "Romero Ruscalleda, Josep"]
[Black "Vlassov, Nikolai"]
[Result "0-1"]
[Board "160"]
[TimeControl "180+1"]
[WhiteFideId "2231859"]
[BlackFideId "4103360"]
[WhiteElo "2316"]
[BlackElo "2628"]
[WhiteTeam "ESP"]
[BlackTeam "FID"]
[WhiteClock "0:00:17"]
[BlackClock "0:01:25"]

1. e4 {[%clk 0:03:00]}  Nc6 {[%clk 0:02:59]} 2. d4 {[%clk 0:03:00]}  d5 {[%clk 0:02:59]} 3. Nc3 {[%clk 0:02:55]}  e5 {[%clk 0:02:58]} 4. exd5 {[%clk 0:02:52]}  Nxd4 {[%clk 0:02:58]} 5. Be3 {[%clk 0:02:52]}  Nf5 {[%clk 0:02:57]} 6. Nf3 {[%clk 0:02:50]}  Nxe3 {[%clk 0:02:49]} 7. fxe3 {[%clk 0:02:48]}  Bd6 {[%clk 0:02:50]} 8. Bb5+ {[%clk 0:02:45]}  Bd7 {[%clk 0:02:49]} 9. Bxd7+ {[%clk 0:02:36]}  Qxd7 {[%clk 0:02:50]} 10. e4 {[%clk 0:02:36]}  Ne7 {[%clk 0:02:48]} 11. O-O {[%clk 0:02:35]}  O-O {[%clk 0:02:48]} 12. Qd3 {[%clk 0:02:22]}  Ng6 {[%clk 0:02:47]} 13. g3 {[%clk 0:02:19]}  a6 {[%clk 0:02:45]} 14. Kg2 {[%clk 0:02:15]}  b5 {[%clk 0:02:44]} 15. a4 {[%clk 0:02:11]}  b4 {[%clk 0:02:44]} 16. Ne2 {[%clk 0:02:11]}  f5 {[%clk 0:02:45]} 17. c4 {[%clk 0:01:59]}  bxc3 {[%clk 0:02:35]} 18. bxc3 {[%clk 0:01:54]}  f4 {[%clk 0:02:21]} 19. Rf2 {[%clk 0:01:34]}  fxg3 {[%clk 0:02:13]} 20. hxg3 {[%clk 0:01:33]}  Qg4 {[%clk 0:02:13]} 21. Rh1 {[%clk 0:01:28]}  Rf7 {[%clk 0:01:48]} 22. Rff1 {[%clk 0:01:02]}  Raf8 {[%clk 0:01:45]} 23. Nh2 {[%clk 0:01:01]}  Nh4+ {[%clk 0:01:33]} 24. Kg1 {[%clk 0:00:17]}  Qh3 {[%clk 0:01:25]} 0-1

[Event "January 2 Late 2024"]
[Site "https://www.chess.com"]
[Date "2024.01.02"]
[Round "6"]
[White "Bazzano, Sebastian"]
[Black "Gavrilov, Maxim"]
[Result "0-1"]
[Board "161"]
[TimeControl "180+1"]
[WhiteFideId "104566"]
[BlackFideId "24271454"]
[WhiteElo "2298"]
[BlackElo "2485"]
[WhiteTeam "ARG"]
[BlackTeam "RUS"]
[WhiteClock "0:00:00"]
[BlackClock "0:00:32"]

1. d4 {[%clk 0:02:41]}  Nf6 {[%clk 0:02:59]} 2. Bf4 {[%clk 0:02:39]}  d5 {[%clk 0:02:59]} 3. e3 {[%clk 0:02:39]}  e6 {[%clk 0:02:56]} 4. c3 {[%clk 0:02:39]}  c5 {[%clk 0:02:56]} 5. Nd2 {[%clk 0:02:39]}  Nc6 {[%clk 0:02:56]} 6. Ngf3 {[%clk 0:02:39]}  Bd6 {[%clk 0:02:56]} 7. Bg3 {[%clk 0:02:39]}  Qc7 {[%clk 0:02:55]} 8. Bd3 {[%clk 0:02:38]}  Nd7 {[%clk 0:02:44]} 9. O-O {[%clk 0:02:36]}  h6 {[%clk 0:02:41]} 10. Re1 {[%clk 0:02:28]}  O-O {[%clk 0:02:40]} 11. Bxd6 {[%clk 0:02:21]}  Qxd6 {[%clk 0:02:40]} 12. e4 {[%clk 0:02:22]}  cxd4 {[%clk 0:02:38]} 13. cxd4 {[%clk 0:02:17]}  dxe4 {[%clk 0:02:32]} 14. Nxe4 {[%clk 0:02:17]}  Qe7 {[%clk 0:02:32]} 15. Rc1 {[%clk 0:01:53]}  Nf6 {[%clk 0:02:27]} 16. Nxf6+ {[%clk 0:01:39]}  Qxf6 {[%clk 0:02:28]} 17. Bb5 {[%clk 0:01:40]}  Bd7 {[%clk 0:02:12]} 18. Ne5 {[%clk 0:01:35]}  Qe7 {[%clk 0:01:50]} 19. Nxc6 {[%clk 0:01:14]}  bxc6 {[%clk 0:01:48]} 20. Bxc6 {[%clk 0:01:14]}  Bxc6 {[%clk 0:01:48]} 21. Rxc6 {[%clk 0:01:14]}  Rab8 {[%clk 0:01:49]} 22. b3 {[%clk 0:01:10]}  Rfd8 {[%clk 0:01:49]} 23. Rc4 {[%clk 0:01:04]}  Qd6 {[%clk 0:01:44]} 24. Qc2 {[%clk 0:00:54]}  Rb4 {[%clk 0:01:31]} 25. Rd1 {[%clk 0:00:41]}  Rb5 {[%clk 0:01:05]} 26. h3 {[%clk 0:00:39]}  Rd5 {[%clk 0:01:05]} 27. Rc1 {[%clk 0:00:13]}  Rxd4 {[%clk 0:00:55]} 28. Rxd4 {[%clk 0:00:13]}  Qxd4 {[%clk 0:00:55]} 29. Qc3 {[%clk 0:00:13]}  Qd5 {[%clk 0:00:50]} 30. Qe3 {[%clk 0:00:09]}  a5 {[%clk 0:00:49]} 31. Rc5 {[%clk 0:00:06]}  Qd1+ {[%clk 0:00:49]} 32. Kh2 {[%clk 0:00:07]}  a4 {[%clk 0:00:46]} 33. bxa4 {[%clk 0:00:06]}  Qxa4 {[%clk 0:00:46]} 34. Qb3 {[%clk 0:00:04]}  Qd4 {[%clk 0:00:34]} 35. Rc2 {[%clk 0:00:02]}  h5 {[%clk 0:00:32]} 36. f3 {[%clk 0:00:02]}  h4 {[%clk 0:00:32]} 37. Qc3 {[%clk 0:00:00]}  Qf4+ {[%clk 0:00:32]} 0-1

[Event "January 2 Late 2024"]
[Site "https://www.chess.com"]
[Date "2024.01.02"]
[Round "6"]
[White "Coelho, Ramyres Santana"]
[Black "Tikhonov, Viacheslav"]
[Result "0-1"]
[Board "163"]
[TimeControl "180+1"]
[WhiteFideId "2120690"]
[BlackFideId "44196407"]
[WhiteElo "2294"]
[BlackElo "2471"]
[WhiteTeam "BRA"]
[BlackTeam "RUS"]
[WhiteClock "0:00:00"]
[BlackClock "0:00:56"]

1. e4 {[%clk 0:03:00]}  c5 {[%clk 0:02:54]} 2. Nf3 {[%clk 0:03:00]}  d6 {[%clk 0:02:54]} 3. d4 {[%clk 0:03:00]}  cxd4 {[%clk 0:02:55]} 4. Nxd4 {[%clk 0:03:01]}  Nf6 {[%clk 0:02:56]} 5. Nc3 {[%clk 0:03:02]}  a6 {[%clk 0:02:57]} 6. f3 {[%clk 0:03:01]}  e5 {[%clk 0:02:57]} 7. Nb3 {[%clk 0:03:01]}  Be6 {[%clk 0:02:57]} 8. Be3 {[%clk 0:03:01]}  h5 {[%clk 0:02:58]} 9. Qd2 {[%clk 0:03:02]}  Nbd7 {[%clk 0:02:57]} 10. O-O-O {[%clk 0:03:02]}  g6 {[%clk 0:02:57]} 11. h3 {[%clk 0:03:02]}  Rc8 {[%clk 0:02:54]} 12. f4 {[%clk 0:03:02]}  exf4 {[%clk 0:02:53]} 13. Bxf4 {[%clk 0:03:03]}  Ne5 {[%clk 0:02:54]} 14. Bxe5 {[%clk 0:02:59]}  dxe5 {[%clk 0:02:53]} 15. Qxd8+ {[%clk 0:02:51]}  Rxd8 {[%clk 0:02:53]} 16. Rxd8+ {[%clk 0:02:52]}  Kxd8 {[%clk 0:02:54]} 17. Be2 {[%clk 0:02:50]}  Bh6+ {[%clk 0:02:52]} 18. Kb1 {[%clk 0:02:51]}  Ke7 {[%clk 0:02:37]} 19. Nc5 {[%clk 0:02:45]}  Bc8 {[%clk 0:02:29]} 20. Nd5+ {[%clk 0:02:30]}  Nxd5 {[%clk 0:02:27]} 21. exd5 {[%clk 0:02:31]}  Kd6 {[%clk 0:02:22]} 22. b4 {[%clk 0:02:20]}  f5 {[%clk 0:02:08]} 23. c4 {[%clk 0:02:13]}  a5 {[%clk 0:01:59]} 24. a3 {[%clk 0:02:12]}  axb4 {[%clk 0:01:57]} 25. axb4 {[%clk 0:02:13]}  Bd2 {[%clk 0:01:57]} 26. Nd3 {[%clk 0:01:52]}  e4 {[%clk 0:01:57]} 27. Nb2 {[%clk 0:01:30]}  Bxb4 {[%clk 0:01:54]} 28. Rf1 {[%clk 0:01:24]}  Ke5 {[%clk 0:01:49]} 29. g4 {[%clk 0:01:19]}  hxg4 {[%clk 0:01:46]} 30. hxg4 {[%clk 0:01:20]}  Rh2 {[%clk 0:01:44]} 31. Bd1 {[%clk 0:00:48]}  f4 {[%clk 0:01:37]} 32. Rg1 {[%clk 0:00:23]}  g5 {[%clk 0:01:31]} 33. Bc2 {[%clk 0:00:19]}  Bd7 {[%clk 0:01:26]} 34. Na4 {[%clk 0:00:17]}  Rxc2 {[%clk 0:01:04]} 35. Kxc2 {[%clk 0:00:13]}  Bxa4+ {[%clk 0:01:03]} 36. Kb2 {[%clk 0:00:14]}  Bc5 {[%clk 0:00:58]} 37. Rh1 {[%clk 0:00:13]}  f3 {[%clk 0:00:56]} 38. Rh5 {[%clk 0:00:06]}  Be3 {[%clk 0:00:55]} 39. Rh8 {[%clk 0:00:04]}  f2 {[%clk 0:00:55]} 40. Rh1 {[%clk 0:00:04]}  Bd7 {[%clk 0:00:53]} 41. Kb3 {[%clk 0:00:03]}  Bxg4 {[%clk 0:00:53]} 42. Kb4 {[%clk 0:00:02]}  Be2 {[%clk 0:00:54]} 43. Kb5 {[%clk 0:00:02]}  f1=Q {[%clk 0:00:53]} 44. Rxf1 {[%clk 0:00:02]}  Bxf1 {[%clk 0:00:54]} 45. Kb4 {[%clk 0:00:01]}  g4 {[%clk 0:00:54]} 46. Ka5 {[%clk 0:00:01]}  g3 {[%clk 0:00:55]} 47. c5 {[%clk 0:00:01]}  Kxd5 {[%clk 0:00:55]} 48. c6 {[%clk 0:00:02]}  Kxc6 {[%clk 0:00:54]} 49. Kb4 {[%clk 0:00:01]}  g2 {[%clk 0:00:55]} 50. Ka5 {[%clk 0:00:00]}  g1=Q {[%clk 0:00:56]} 0-1

[Event "January 2 Late 2024"]
[Site "https://www.chess.com"]
[Date "2024.01.02"]
[Round "6"]
[White "Chocenka, Dmitrijus"]
[Black "Curtis, John"]
[Result "1-0"]
[Board "164"]
[TimeControl "180+1"]
[WhiteFideId "12802336"]
[BlackFideId "3200256"]
[WhiteElo "2461"]
[BlackElo "2225"]
[WhiteTeam "LTU"]
[BlackTeam "AUS"]
[WhiteClock "0:00:20"]
[BlackClock "0:00:17"]

1. e4 {[%clk 0:02:38]}  c5 {[%clk 0:02:55]} 2. Nf3 {[%clk 0:02:38]}  d6 {[%clk 0:02:54]} 3. d4 {[%clk 0:02:38]}  cxd4 {[%clk 0:02:54]} 4. Nxd4 {[%clk 0:02:39]}  Nf6 {[%clk 0:02:54]} 5. Nc3 {[%clk 0:02:39]}  a6 {[%clk 0:02:55]} 6. h3 {[%clk 0:02:39]}  e5 {[%clk 0:02:55]} 7. Nde2 {[%clk 0:02:40]}  Be6 {[%clk 0:02:55]} 8. g4 {[%clk 0:02:40]}  h6 {[%clk 0:02:51]} 9. Bg2 {[%clk 0:02:40]}  b5 {[%clk 0:02:46]} 10. O-O {[%clk 0:02:38]}  b4 {[%clk 0:02:46]} 11. Nd5 {[%clk 0:02:39]}  Nbd7 {[%clk 0:02:35]} 12. c4 {[%clk 0:02:36]}  Bxd5 {[%clk 0:02:26]} 13. cxd5 {[%clk 0:02:32]}  Qb6 {[%clk 0:02:17]} 14. Be3 {[%clk 0:02:32]}  Nc5 {[%clk 0:02:17]} 15. Ng3 {[%clk 0:02:30]}  Nfd7 {[%clk 0:02:09]} 16. Kh2 {[%clk 0:02:18]}  g6 {[%clk 0:02:09]} 17. Qd2 {[%clk 0:02:17]}  Bg7 {[%clk 0:02:07]} 18. f4 {[%clk 0:02:06]}  exf4 {[%clk 0:02:06]} 19. Bxf4 {[%clk 0:02:07]}  Ne5 {[%clk 0:01:52]} 20. Ne2 {[%clk 0:01:58]}  Nc4 {[%clk 0:01:50]} 21. Qe1 {[%clk 0:01:52]}  Nd3 {[%clk 0:01:44]} 22. Qg3 {[%clk 0:01:53]}  Nxf4 {[%clk 0:01:44]} 23. Nxf4 {[%clk 0:01:52]}  Be5 {[%clk 0:01:44]} 24. g5 {[%clk 0:01:49]}  Ne3 {[%clk 0:01:41]} 25. Rf3 {[%clk 0:01:40]}  Nxg2 {[%clk 0:01:39]} 26. Kxg2 {[%clk 0:01:41]}  Qd4 {[%clk 0:01:36]} 27. Re1 {[%clk 0:01:34]}  Qxb2+ {[%clk 0:01:35]} 28. Rf2 {[%clk 0:01:34]}  Qc3 {[%clk 0:01:30]} 29. Re3 {[%clk 0:01:33]}  Qd4 {[%clk 0:01:24]} 30. Rfe2 {[%clk 0:01:23]}  Ra7 {[%clk 0:01:23]} 31. Qg4 {[%clk 0:01:21]}  Bxf4 {[%clk 0:01:13]} 32. Qxf4 {[%clk 0:01:16]}  hxg5 {[%clk 0:01:12]} 33. Qxd6 {[%clk 0:01:10]}  Rd7 {[%clk 0:01:02]} 34. Qxa6 {[%clk 0:01:03]}  Qe5 {[%clk 0:00:55]} 35. Qc8+ {[%clk 0:00:57]}  Rd8 {[%clk 0:00:55]} 36. Qc6+ {[%clk 0:00:55]}  Kf8 {[%clk 0:00:55]} 37. Qc5+ {[%clk 0:00:51]}  Kg7 {[%clk 0:00:54]} 38. Qxb4 {[%clk 0:00:47]}  g4 {[%clk 0:00:54]} 39. Qc3 {[%clk 0:00:38]}  gxh3+ {[%clk 0:00:54]} 40. Rxh3 {[%clk 0:00:34]}  f6 {[%clk 0:00:41]} 41. Qxe5 {[%clk 0:00:33]}  fxe5 {[%clk 0:00:41]} 42. Rxh8 {[%clk 0:00:32]}  Kxh8 {[%clk 0:00:41]} 43. a4 {[%clk 0:00:32]}  Ra8 {[%clk 0:00:38]} 44. Ra2 {[%clk 0:00:32]}  Ra5 {[%clk 0:00:38]} 45. Kg3 {[%clk 0:00:32]}  Kg7 {[%clk 0:00:39]} 46. Kg4 {[%clk 0:00:29]}  Kf6 {[%clk 0:00:39]} 47. Ra3 {[%clk 0:00:29]}  Kf7 {[%clk 0:00:34]} 48. Kg5 {[%clk 0:00:29]}  Kg7 {[%clk 0:00:33]} 49. Ra2 {[%clk 0:00:29]}  Kf7 {[%clk 0:00:33]} 50. Rf2+ {[%clk 0:00:25]}  Ke7 {[%clk 0:00:31]} 51. Kxg6 {[%clk 0:00:23]}  Rxa4 {[%clk 0:00:29]} 52. Kf5 {[%clk 0:00:20]}  Kd6 {[%clk 0:00:29]} 53. Rh2 {[%clk 0:00:20]}  Ra5 {[%clk 0:00:25]} 54. Rh6+ {[%clk 0:00:20]}  Kc5 {[%clk 0:00:25]} 55. Kxe5 {[%clk 0:00:20]}  Ra1 {[%clk 0:00:22]} 56. Rc6+ {[%clk 0:00:20]}  Kb5 {[%clk 0:00:22]} 57. Rc2 {[%clk 0:00:20]}  Rb1 {[%clk 0:00:22]} 58. d6 {[%clk 0:00:20]}  Rd1 {[%clk 0:00:21]} 59. Ke6 {[%clk 0:00:20]}  Rd4 {[%clk 0:00:21]} 60. e5 {[%clk 0:00:20]}  Kb6 {[%clk 0:00:22]} 61. d7 {[%clk 0:00:20]}  Kb7 {[%clk 0:00:22]} 62. Ke7 {[%clk 0:00:20]}  Rd5 {[%clk 0:00:22]} 63. e6 {[%clk 0:00:20]}  Rc5 {[%clk 0:00:17]} 64. Rxc5 {[%clk 0:00:20]} 1-0

[Event "January 2 Late 2024"]
[Site "https://www.chess.com"]
[Date "2024.01.02"]
[Round "6"]
[White "Sokolov, Andrei"]
[Black "hoshiboshi"]
[Result "1-0"]
[Board "168"]
[TimeControl "180+1"]
[WhiteFideId "11600306"]
[WhiteElo "2356"]
[BlackElo "2154"]
[WhiteTeam "LAT"]
[WhiteClock "0:00:04"]
[BlackClock "0:00:16"]

1. d4 {[%clk 0:02:41]}  Nf6 {[%clk 0:02:59]} 2. c4 {[%clk 0:02:41]}  e6 {[%clk 0:02:59]} 3. Nf3 {[%clk 0:02:38]}  d5 {[%clk 0:02:59]} 4. g3 {[%clk 0:02:38]}  dxc4 {[%clk 0:02:55]} 5. Bg2 {[%clk 0:02:37]}  Nbd7 {[%clk 0:02:55]} 6. a4 {[%clk 0:02:35]}  a5 {[%clk 0:02:41]} 7. O-O {[%clk 0:02:28]}  Nb6 {[%clk 0:02:41]} 8. Qc2 {[%clk 0:02:23]}  Bb4 {[%clk 0:02:11]} 9. Nbd2 {[%clk 0:01:52]}  Bxd2 {[%clk 0:02:09]} 10. Bxd2 {[%clk 0:01:53]}  O-O {[%clk 0:02:09]} 11. e4 {[%clk 0:01:53]}  Bd7 {[%clk 0:02:04]} 12. e5 {[%clk 0:01:44]}  Nfd5 {[%clk 0:02:04]} 13. Ng5 {[%clk 0:01:43]}  g6 {[%clk 0:01:58]} 14. Ne4 {[%clk 0:01:40]}  Bc6 {[%clk 0:01:41]} 15. Bh6 {[%clk 0:01:28]}  Nb4 {[%clk 0:01:36]} 16. Qe2 {[%clk 0:01:09]}  Bxe4 {[%clk 0:01:27]} 17. Bxe4 {[%clk 0:01:07]}  N6d5 {[%clk 0:01:24]} 18. Bxf8 {[%clk 0:01:04]}  Qxf8 {[%clk 0:01:20]} 19. Qxc4 {[%clk 0:01:02]}  c6 {[%clk 0:01:20]} 20. Rac1 {[%clk 0:00:55]}  Rd8 {[%clk 0:01:15]} 21. Qc5 {[%clk 0:00:48]}  Qxc5 {[%clk 0:01:06]} 22. dxc5 {[%clk 0:00:38]}  Kf8 {[%clk 0:00:59]} 23. Rfd1 {[%clk 0:00:34]}  Ke7 {[%clk 0:00:59]} 24. Bxd5 {[%clk 0:00:29]}  cxd5 {[%clk 0:00:55]} 25. f4 {[%clk 0:00:25]}  Rc8 {[%clk 0:00:53]} 26. Kf2 {[%clk 0:00:22]}  Kd7 {[%clk 0:00:51]} 27. Ke3 {[%clk 0:00:20]}  Na6 {[%clk 0:00:51]} 28. Kd4 {[%clk 0:00:19]}  Kc6 {[%clk 0:00:50]} 29. Rd3 {[%clk 0:00:17]}  Nb4 {[%clk 0:00:50]} 30. Rb3 {[%clk 0:00:17]}  Na6 {[%clk 0:00:49]} 31. Rb5 {[%clk 0:00:16]}  h5 {[%clk 0:00:23]} 32. Rxa5 {[%clk 0:00:16]}  h4 {[%clk 0:00:24]} 33. Rb5 {[%clk 0:00:16]}  hxg3 {[%clk 0:00:23]} 34. hxg3 {[%clk 0:00:17]}  Rh8 {[%clk 0:00:23]} 35. Rb6+ {[%clk 0:00:14]}  Kc7 {[%clk 0:00:22]} 36. Rb3 {[%clk 0:00:13]}  Rh2 {[%clk 0:00:21]} 37. a5 {[%clk 0:00:09]}  Re2 {[%clk 0:00:21]} 38. Kd3 {[%clk 0:00:08]}  Re4 {[%clk 0:00:21]} 39. Kd2 {[%clk 0:00:08]}  Ra4 {[%clk 0:00:21]} 40. c6 {[%clk 0:00:06]}  bxc6 {[%clk 0:00:19]} 41. Rb6 {[%clk 0:00:06]}  Rxa5 {[%clk 0:00:19]} 42. Rcxc6+ {[%clk 0:00:05]}  Kd7 {[%clk 0:00:18]} 43. Rxa6 {[%clk 0:00:06]}  Rb5 {[%clk 0:00:18]} 44. Rab6 {[%clk 0:00:06]}  Ra5 {[%clk 0:00:18]} 45. Rd6+ {[%clk 0:00:05]}  Ke7 {[%clk 0:00:18]} 46. Rb7+ {[%clk 0:00:05]}  Kf8 {[%clk 0:00:16]} 47. Rdd7 {[%clk 0:00:04]} 1-0

[Event "January 2 Late 2024"]
[Site "https://www.chess.com"]
[Date "2024.01.02"]
[Round "6"]
[White "Achuthan, Aryan"]
[Black "Dmitriev, Sergey"]
[Result "0-1"]
[Board "170"]
[TimeControl "180+1"]
[WhiteFideId "30982294"]
[BlackFideId "14101785"]
[WhiteElo "2323"]
[BlackElo "2009"]
[WhiteTeam "USA"]
[BlackTeam "UKR"]
[WhiteClock "0:00:00"]
[BlackClock "0:00:51"]

1. d4 {[%clk 0:03:00]}  d6 {[%clk 0:02:56]} 2. c4 {[%clk 0:02:57]}  g6 {[%clk 0:02:56]} 3. Nc3 {[%clk 0:02:57]}  Bg7 {[%clk 0:02:56]} 4. e4 {[%clk 0:02:57]}  Nf6 {[%clk 0:02:56]} 5. Nge2 {[%clk 0:02:56]}  O-O {[%clk 0:02:56]} 6. f3 {[%clk 0:02:57]}  Nc6 {[%clk 0:02:56]} 7. Be3 {[%clk 0:02:57]}  e5 {[%clk 0:02:55]} 8. d5 {[%clk 0:02:58]}  Ne7 {[%clk 0:02:55]} 9. g4 {[%clk 0:02:57]}  Nd7 {[%clk 0:02:54]} 10. Ng3 {[%clk 0:02:56]}  f5 {[%clk 0:02:53]} 11. gxf5 {[%clk 0:02:57]}  gxf5 {[%clk 0:02:53]} 12. Nxf5 {[%clk 0:02:57]}  Nxf5 {[%clk 0:02:53]} 13. exf5 {[%clk 0:02:58]}  Rxf5 {[%clk 0:02:51]} 14. Bd3 {[%clk 0:02:54]}  Rf8 {[%clk 0:02:35]} 15. Qe2 {[%clk 0:02:24]}  Qh4+ {[%clk 0:02:22]} 16. Bf2 {[%clk 0:02:18]}  Qf4 {[%clk 0:02:20]} 17. Be4 {[%clk 0:02:14]}  Nf6 {[%clk 0:02:08]} 18. Be3 {[%clk 0:02:00]}  Qh4+ {[%clk 0:02:06]} 19. Bf2 {[%clk 0:01:54]}  Qf4 {[%clk 0:02:05]} 20. Be3 {[%clk 0:01:46]}  Qh4+ {[%clk 0:02:05]} 21. Kd2 {[%clk 0:01:32]}  Nxe4+ {[%clk 0:02:03]} 22. fxe4 {[%clk 0:01:33]}  Bg4 {[%clk 0:01:58]} 23. Qe1 {[%clk 0:01:28]}  Qh3 {[%clk 0:01:47]} 24. Qg3 {[%clk 0:01:23]}  Rf3 {[%clk 0:01:37]} 25. Qxh3 {[%clk 0:01:20]}  Rxh3 {[%clk 0:01:33]} 26. Raf1 {[%clk 0:00:34]}  Rf8 {[%clk 0:01:22]} 27. Rxf8+ {[%clk 0:00:20]}  Kxf8 {[%clk 0:01:15]} 28. Rf1+ {[%clk 0:00:20]}  Ke7 {[%clk 0:01:01]} 29. Bg5+ {[%clk 0:00:15]}  Ke8 {[%clk 0:01:01]} 30. Rf2 {[%clk 0:00:15]}  Rf3 {[%clk 0:00:58]} 31. Rxf3 {[%clk 0:00:13]}  Bxf3 {[%clk 0:00:58]} 32. Ke3 {[%clk 0:00:13]}  Bg4 {[%clk 0:00:58]} 33. Nb5 {[%clk 0:00:00]}  Kd7 {[%clk 0:00:51]} 0-1

[Event "January 2 Late 2024"]
[Site "https://www.chess.com"]
[Date "2024.01.02"]
[Round "6"]
[White "Mazi, Leon"]
[Black "Carrillo Marval, Maria Angelica"]
[Result "1-0"]
[Board "171"]
[TimeControl "180+1"]
[WhiteFideId "14600315"]
[BlackFideId "3911853"]
[WhiteElo "2472"]
[BlackElo "2119"]
[WhiteTeam "SLO"]
[BlackTeam "PAN"]
[WhiteClock "0:01:42"]
[BlackClock "0:00:09"]

1. e4 {[%clk 0:03:00]}  c5 {[%clk 0:02:56]} 2. Nf3 {[%clk 0:03:00]}  d6 {[%clk 0:02:56]} 3. d4 {[%clk 0:02:59]}  cxd4 {[%clk 0:02:56]} 4. Qxd4 {[%clk 0:03:00]}  Nf6 {[%clk 0:02:57]} 5. h3 {[%clk 0:02:54]}  Nc6 {[%clk 0:02:57]} 6. Qe3 {[%clk 0:02:53]}  g6 {[%clk 0:02:56]} 7. Be2 {[%clk 0:02:53]}  Bg7 {[%clk 0:02:57]} 8. O-O {[%clk 0:02:53]}  O-O {[%clk 0:02:58]} 9. Rd1 {[%clk 0:02:53]}  Qc7 {[%clk 0:02:51]} 10. c4 {[%clk 0:02:50]}  a5 {[%clk 0:02:50]} 11. Nc3 {[%clk 0:02:50]}  Be6 {[%clk 0:02:45]} 12. Rb1 {[%clk 0:02:45]}  Rfc8 {[%clk 0:02:41]} 13. b3 {[%clk 0:02:35]}  Nd7 {[%clk 0:02:33]} 14. Bb2 {[%clk 0:02:31]}  Nde5 {[%clk 0:02:33]} 15. Ng5 {[%clk 0:02:27]}  Bd7 {[%clk 0:02:18]} 16. Nd5 {[%clk 0:02:26]}  Qd8 {[%clk 0:02:18]} 17. Nb6 {[%clk 0:02:23]}  h6 {[%clk 0:02:15]} 18. Nf3 {[%clk 0:02:20]}  Nxf3+ {[%clk 0:02:13]} 19. Bxf3 {[%clk 0:02:20]}  Ne5 {[%clk 0:02:07]} 20. Nxc8 {[%clk 0:02:17]}  Rxc8 {[%clk 0:02:07]} 21. Be2 {[%clk 0:02:16]}  a4 {[%clk 0:02:01]} 22. Bd4 {[%clk 0:02:11]}  f5 {[%clk 0:01:49]} 23. exf5 {[%clk 0:02:04]}  Bxf5 {[%clk 0:01:49]} 24. Rbc1 {[%clk 0:02:04]}  Qf8 {[%clk 0:01:45]} 25. c5 {[%clk 0:02:00]}  axb3 {[%clk 0:01:16]} 26. axb3 {[%clk 0:01:56]}  Be6 {[%clk 0:01:11]} 27. f4 {[%clk 0:01:53]}  dxc5 {[%clk 0:00:33]} 28. Bxe5 {[%clk 0:01:50]}  Bxe5 {[%clk 0:00:30]} 29. Qxe5 {[%clk 0:01:49]}  Bxb3 {[%clk 0:00:25]} 30. Rd7 {[%clk 0:01:46]}  Re8 {[%clk 0:00:18]} 31. Rxb7 {[%clk 0:01:45]}  Qf7 {[%clk 0:00:09]} 32. Rxb3 {[%clk 0:01:42]} 1-0

[Event "January 2 Late 2024"]
[Site "https://www.chess.com"]
[Date "2024.01.02"]
[Round "6"]
[White "Fernandez Madrid, Carlos"]
[Black "Sreyas Payyappat"]
[Result "1-0"]
[Board "172"]
[TimeControl "180+1"]
[WhiteFideId "2206030"]
[BlackFideId "46674969"]
[WhiteElo "2251"]
[BlackElo "2458"]
[WhiteTeam "ESP"]
[BlackTeam "IND"]
[WhiteClock "0:01:52"]
[BlackClock "0:00:00"]

1. d4 {[%clk 0:02:55]}  Nf6 {[%clk 0:02:59]} 2. Nf3 {[%clk 0:02:55]}  c5 {[%clk 0:02:59]} 3. g3 {[%clk 0:02:55]}  e6 {[%clk 0:03:00]} 4. Bg2 {[%clk 0:02:55]}  Nc6 {[%clk 0:02:59]} 5. O-O {[%clk 0:02:55]}  cxd4 {[%clk 0:02:59]} 6. Nxd4 {[%clk 0:02:54]}  d5 {[%clk 0:02:59]} 7. b3 {[%clk 0:02:54]}  e5 {[%clk 0:02:59]} 8. Nxc6 {[%clk 0:02:53]}  bxc6 {[%clk 0:03:00]} 9. Bb2 {[%clk 0:02:53]}  Bd6 {[%clk 0:03:00]} 10. c4 {[%clk 0:02:53]}  O-O {[%clk 0:03:00]} 11. cxd5 {[%clk 0:02:53]}  cxd5 {[%clk 0:03:01]} 12. Nc3 {[%clk 0:02:53]}  Bb7 {[%clk 0:02:57]} 13. Nxd5 {[%clk 0:02:51]}  Rb8 {[%clk 0:02:41]} 14. Nxf6+ {[%clk 0:02:49]}  Qxf6 {[%clk 0:02:42]} 15. Bxb7 {[%clk 0:02:48]}  Rxb7 {[%clk 0:02:43]} 16. Qd5 {[%clk 0:02:48]}  Rd7 {[%clk 0:02:42]} 17. Rad1 {[%clk 0:02:47]}  Rfd8 {[%clk 0:02:41]} 18. Qb5 {[%clk 0:02:40]}  h6 {[%clk 0:02:38]} 19. Rd3 {[%clk 0:02:39]}  Qe7 {[%clk 0:02:33]} 20. Rfd1 {[%clk 0:02:38]}  e4 {[%clk 0:02:33]} 21. Rd5 {[%clk 0:02:29]}  e3 {[%clk 0:02:30]} 22. f4 {[%clk 0:02:28]}  a6 {[%clk 0:02:28]} 23. Qd3 {[%clk 0:02:24]}  Qe6 {[%clk 0:02:01]} 24. Be5 {[%clk 0:02:19]}  g5 {[%clk 0:00:18]} 25. Bxd6 {[%clk 0:02:15]}  gxf4 {[%clk 0:00:19]} 26. gxf4 {[%clk 0:01:56]}  Qg4+ {[%clk 0:00:00]} 27. Kh1 {[%clk 0:01:52]} 1-0